fUST/lending_fUST_20250727
["ID","MTS","AMOUNT","RATE_DAILY","PERIOD"]
[375205738,1753584664588,-512.39,0.00021917,2]
[375205739,1753584664598,-8629.65,0.00021917,2]
[375205740,1753584664608,-666.66,0.00021917,2]
[375205741,1753584664617,-720.17,0.00021917,2]
[375205742,1753584664627,-720.65,0.00021917,2]
[375205743,1753584664637,-460.0,0.00021917,2]
[375205744,1753584664646,-460.0,0.00021917,2]
[375205745,1753584664656,-460.0,0.00021917,2]
[375205746,1753584664666,-460.0,0.00021917,2]
[375205747,1753584664676,-671.34,0.00021917,2]
[375205748,1753584664685,-460.0,0.00021917,2]
[375205749,1753584664696,-460.0,0.00021917,2]
[375205750,1753584664706,-575.98,0.00021917,2]
[375205751,1753584664715,-460.0,0.00021917,2]
[375205752,1753584664725,-151.0,0.00021918,2]
[375205753,1753584664735,-150.0,0.00021918,2]
[375205754,1753584664745,-2821.70024551,0.00021997,2]
[375205755,1753584664755,-638.41,0.00022,7]
[375205756,1753584664764,-2427.61,0.00022,7]
[375205757,1753584664774,-152.549287,0.00022,7]
[375205758,1753584664784,-18521.08,0.00022,2]
[375205759,1753584664793,-151.0,0.00022,7]
[375205760,1753584664803,-151.0,0.00022,7]
[375205761,1753584664813,-248.449348,0.00022,7]
[375205762,1753584664822,-154.655922,0.00022,7]
[375205763,1753584664832,-154.655922,0.00022,7]
[375205764,1753584664841,-3699.02174736,0.00022038,6]
[375205765,1753584664851,-2270.75,0.00022191,2]
[375205766,1753584664860,-460.0,0.00022191,2]
[375205767,1753584664870,-460.0,0.00022191,2]
[375205768,1753584664880,-544.18,0.00022191,2]
[375205769,1753584664889,-1567.62,0.00022191,2]
[375205770,1753584664899,-484.59,0.00022191,2]
[375205771,1753584664908,-460.0,0.00022191,2]
[375205772,1753584664917,-460.0,0.00022191,2]
[375205773,1753584664927,-460.0,0.00022191,2]
[375205774,1753584664936,-733.17,0.00022191,2]
[375205775,1753584664945,-769.79,0.00022191,2]
[375205776,1753584664955,-628.61,0.00022191,2]
[375205777,1753584664965,-460.0,0.00022191,2]
[375205778,1753584664974,-460.0,0.00022191,2]
[375205779,1753584664983,-460.0,0.00022191,2]
[375205780,1753584664992,-462.78,0.00022191,2]
[375205781,1753584665002,-460.0,0.00022191,2]
[375205782,1753584665011,-467.68,0.00022191,2]
[375205783,1753584665021,-460.0,0.00022191,2]
[375205784,1753584665031,-460.0,0.00022191,2]
[375205785,1753584665040,-460.0,0.00022191,2]
[375205786,1753584665049,-460.0,0.00022191,2]
[375205787,1753584665058,-1855.52,0.00022191,2]
[375205788,1753584665068,-460.0,0.00022191,2]
[375205789,1753584665077,-153.528252,0.00022191,7]
[375205790,1753584665086,-151.503786,0.00022191,7]
[375205791,1753584665096,-460.0,0.00022191,2]
[375205792,1753584665106,-460.0,0.00022191,2]
[375205793,1753584665116,-151.0,0.00022191,7]
[375205794,1753584665125,-173.75553439,0.00022191,2]
[375205795,1753584665135,-882.06,0.00022191,2]
[375205796,1753584665144,-460.0,0.00022191,2]
[375205797,1753584665154,-688.84,0.00022191,2]
[375205798,1753584665164,-460.0,0.00022191,2]
[375205799,1753584665173,-460.0,0.00022191,2]
[375205800,1753584665182,-460.0,0.00022191,2]
[375205801,1753584665191,-4238.22,0.00022191,2]
[375205802,1753584665201,-460.0,0.00022191,2]
[375205803,1753584665211,-2826.79,0.00022191,2]
[375205804,1753584665220,-460.0,0.00022191,2]
[375205805,1753584665230,-460.0,0.00022191,2]
[375205806,1753584665239,-1620.32,0.00022191,2]
[375205807,1753584665249,-480.38,0.00022191,2]
[375205808,1753584665259,-2191.67,0.00022191,2]
[375205809,1753584665269,-616.59,0.00022191,2]
[375205810,1753584665278,-533.3,0.00022191,2]
[375205811,1753584665288,-1034.53,0.00022191,2]
[375205812,1753584665297,-460.0,0.00022191,2]
[375205813,1753584665307,-460.0,0.00022191,2]
[375205814,1753584665318,-1110.96,0.00022191,2]
[375205815,1753584665328,-460.0,0.00022191,2]
[375205816,1753584665338,-460.0,0.00022191,2]
[375205817,1753584665347,-2727.04,0.00022191,2]
[375205818,1753584665359,-1595.2,0.00022191,2]
[375205819,1753584665369,-565.04,0.00022191,2]
[375205820,1753584665378,-828.54,0.00022191,2]
[375205821,1753584665388,-575.96,0.00022191,2]
[375205822,1753584665398,-460.0,0.00022191,2]
[375205823,1753584665407,-1071.54,0.00022191,2]
[375205824,1753584665417,-1826.21,0.00022191,2]
[375205825,1753584665426,-469.62,0.00022191,2]
[375205826,1753584665436,-460.0,0.00022191,2]
[375205827,1753584665445,-481.95,0.00022191,2]
[375205828,1753584665455,-2416.16,0.00022191,2]
[375205829,1753584665466,-460.0,0.00022191,2]
[375205830,1753584665478,-460.0,0.00022191,2]
[375205831,1753584665557,-460.0,0.00022191,2]
[375205832,1753584665568,-460.0,0.00022191,2]
[375205833,1753584665585,-708.09,0.00022191,2]
[375205834,1753584665595,-1641.34,0.00022191,2]
[375205835,1753584665605,-877.28,0.00022191,2]
[375205836,1753584665615,-737.71,0.00022191,2]
[375205837,1753584665625,-509.31,0.00022191,2]
[375205838,1753584665635,-460.0,0.00022191,2]
[375205839,1753584665645,-191.03217098,0.00022191,2]
[375205840,1753584665656,-463.68,0.00022191,2]
[375205841,1753584665665,-2088.08,0.00022191,2]
[375205842,1753584665676,-460.0,0.00022191,2]
[375205843,1753584665685,-1803.05,0.00022191,2]
[375205844,1753584665695,-744.6,0.00022191,2]
[375205845,1753584665705,-811.3,0.00022191,2]
[375205846,1753584665716,-469.01104846,0.00022191,2]
[375205847,1753584665726,-512.39,0.00022191,2]
[375205848,1753584665737,-8629.65,0.00022191,2]
[375205849,1753584665748,-666.66,0.00022191,2]
[375205850,1753584665757,-720.17,0.00022191,2]
[375205851,1753584665768,-720.65,0.00022191,2]
[375205852,1753584665779,-460.0,0.00022191,2]
[375205853,1753584665790,-460.0,0.00022191,2]
[375205854,1753584665801,-483.87930488,0.00022191,2]
[375205855,1753584665811,-460.0,0.00022191,2]
[375205856,1753584665821,-671.34,0.00022191,2]
[375205857,1753584665832,-390.81005583,0.00022191,2]
[375205858,1753584665844,-192.31603521,0.00022191,2]
[375205859,1753584665855,-575.98,0.00022191,2]
[375205860,1753584665865,-460.0,0.00022191,2]
[375205861,1753584665877,-160.0,0.00022195,3]
[375205862,1753584665888,-1859.51,0.000222,7]
[375205863,1753584665899,-500.0,0.0002226,2]
[375205864,1753584665908,-3699.02174736,0.00022279,6]
[375205865,1753584665918,-150.0,0.0002228,2]
[375205866,1753584665927,-960.86,0.000223,2]
[375205867,1753584665936,-2821.70024551,0.00022451,2]
[375205868,1753584665947,-2270.75,0.00022465,2]
[375205869,1753584665956,-460.0,0.00022465,2]
[375205870,1753584665967,-460.0,0.00022465,2]
[375205871,1753584665976,-544.18,0.00022465,2]
[375205872,1753584665986,-1070.21645382,0.00022465,2]
[375205873,1753584666080,-460.0,0.00020273,2]
[375205874,1753584666090,-497.40354618,0.00022465,2]
[375205875,1753584666100,-484.59,0.00022465,2]
[375205876,1753584666111,-460.0,0.00022465,2]
[375205877,1753584666122,-460.0,0.00022465,2]
[375205878,1753584666133,-460.0,0.00022465,2]
[375205879,1753584666143,-733.17,0.00022465,2]
[375205880,1753584666152,-769.79,0.00022465,2]
[375205881,1753584666163,-628.61,0.00022465,2]
[375205882,1753584666174,-460.0,0.00022465,2]
[375205883,1753584666183,-460.0,0.00022465,2]
[375205884,1753584666193,-460.0,0.00022465,2]
[375205885,1753584666204,-462.78,0.00022465,2]
[375205886,1753584666214,-155.064477,0.00022465,7]
[375205887,1753584666224,-460.0,0.00022465,2]
[375205888,1753584666236,-467.68,0.00022465,2]
[375205889,1753584666245,-460.0,0.00022465,2]
[375205890,1753584666256,-460.0,0.00022465,2]
[375205891,1753584666266,-460.0,0.00022465,2]
[375205892,1753584666276,-460.0,0.00022465,2]
[375205893,1753584666286,-1855.52,0.00022465,2]
[375205894,1753584666296,-460.0,0.00022465,2]
[375205895,1753584666307,-460.0,0.00022465,2]
[375205896,1753584666321,-407.46112511,0.00022465,2]
[375205897,1753584666330,-882.06,0.00022465,2]
[375205898,1753584666340,-460.0,0.00022465,2]
[375205899,1753584666350,-688.84,0.00022465,2]
[375205900,1753584666359,-460.0,0.00022465,2]
[375205901,1753584666369,-460.0,0.00022465,2]
[375205902,1753584666379,-460.0,0.00022465,2]
[375205903,1753584666390,-4238.22,0.00022465,2]
[375205904,1753584666400,-460.0,0.00022465,2]
[375205905,1753584666411,-1628.62,0.00022465,2]
[375205906,1753584666421,-2826.79,0.00022465,2]
[375205907,1753584666432,-460.0,0.00022465,2]
[375205908,1753584666442,-249.19275384,0.00022465,2]
[375205909,1753584666452,-1620.32,0.00022465,2]
[375205910,1753584666463,-480.38,0.00022465,2]
[375205911,1753584666474,-2191.67,0.00022465,2]
[375205912,1753584666485,-616.59,0.00022465,2]
[375205913,1753584666494,-533.3,0.00022465,2]
[375205914,1753584666504,-1034.53,0.00022465,2]
[375205915,1753584666513,-460.0,0.00022465,2]
[375205916,1753584666523,-570.30705259,0.00022465,2]
[375205917,1753584666533,-1110.96,0.00022465,2]
[375205918,1753584666542,-460.0,0.00022465,2]
[375205919,1753584666553,-460.0,0.00022465,2]
[375205920,1753584666563,-2727.04,0.00022465,2]
[375205921,1753584666573,-1595.2,0.00022465,2]
[375205922,1753584666584,-565.04,0.00022465,2]
[375205923,1753584666594,-828.54,0.00022465,2]
[375205924,1753584666604,-575.96,0.00022465,2]
[375205925,1753584666613,-460.0,0.00022465,2]
[375205926,1753584666623,-1071.54,0.00022465,2]
[375205927,1753584666632,-1826.21,0.00022465,2]
[375205928,1753584666641,-469.62,0.00022465,2]
[375205929,1753584666715,-460.0,0.00022465,2]
[375205930,1753584666731,-481.95,0.00022465,2]
[375205931,1753584666742,-2416.16,0.00022465,2]
[375205932,1753584666751,-460.0,0.00022465,2]
[375205933,1753584666762,-460.0,0.00022465,2]
[375205934,1753584666771,-356.7184415,0.00022465,2]
[375205935,1753584666781,-460.0,0.00022465,2]
[375205936,1753584666793,-708.09,0.00022465,2]
[375205937,1753584666803,-1641.34,0.00022465,2]
[375205938,1753584666813,-877.28,0.00022465,2]
[375205939,1753584666824,-737.71,0.00022465,2]
[375205940,1753584666833,-509.31,0.00022465,2]
[375205941,1753584666844,-304.14765728,0.00022465,2]
[375205942,1753584666853,-463.68,0.00022465,2]
[375205943,1753584666863,-2088.08,0.00022465,2]
[375205944,1753584666872,-460.0,0.00022465,2]
[375205945,1753584666883,-1803.05,0.00022465,2]
[375205946,1753584666892,-811.3,0.00022465,2]
[375205947,1753584666902,-744.6,0.00022465,2]
[375205948,1753584666911,-512.39,0.00022465,2]
[375205949,1753584666922,-8629.65,0.00022465,2]
[375205950,1753584666932,-666.66,0.00022465,2]
[375205951,1753584666942,-720.17,0.00022465,2]
[375205952,1753584666951,-720.65,0.00022465,2]
[375205953,1753584666961,-460.0,0.00022465,2]
[375205954,1753584666970,-460.0,0.00022465,2]
[375205955,1753584666979,-460.0,0.00022465,2]
[375205956,1753584666989,-151.0,0.00022465,7]
[375205957,1753584666999,-671.34,0.00022465,2]
[375205958,1753584667009,-575.98,0.00022465,2]
[375205959,1753584667018,-151.0,0.00022465,7]
[375205960,1753584667027,-460.0,0.00022465,2]
[375205961,1753584667037,-300.80236473,0.00022466,2]
[375205962,1753584667046,-151.0,0.00022503,2]
[375205963,1753584667056,-151.0,0.00022503,2]
[375205964,1753584667065,-151.0,0.00022503,2]
[375205965,1753584667074,-151.0,0.00022503,2]
[375205966,1753584667083,-151.0,0.00022503,2]
[375205967,1753584667093,-151.0,0.00022503,2]
[375205968,1753584667103,-151.0,0.00022503,2]
[375205969,1753584667114,-151.0,0.00022503,2]
[375205970,1753584667124,-151.0,0.00022503,2]
[375205971,1753584667133,-268.61799683,0.00022503,2]
[375205972,1753584667143,-502.05411089,0.00022503,2]
[375205973,1753584667152,-151.0,0.00022503,2]
[375205974,1753584667162,-151.0,0.00022503,2]
[375205975,1753584667172,-25000.0,0.00022503,2]
[375205976,1753584667182,-151.0,0.00022503,2]
[375205977,1753584667192,-151.0,0.00022503,2]
[375205978,1753584667202,-160.92674283,0.00022503,2]
[375205979,1753584667211,-151.0,0.00022503,2]
[375205980,1753584667221,-11044.3831077,0.00022503,2]
[375205981,1753584667231,-151.0,0.00022503,2]
[375205982,1753584667241,-151.0,0.00022503,2]
[375205983,1753584667251,-151.0,0.00022503,2]
[375205984,1753584667269,-291.18913902,0.00022503,2]
[375205985,1753584667285,-151.0,0.00022503,2]
[375205986,1753584667304,-151.0,0.00022503,2]
[375205987,1753584667322,-151.0,0.00022503,2]
[375205988,1753584667342,-151.0,0.00022503,2]
[375205989,1753584667358,-151.0,0.00022503,2]
[375205990,1753584667376,-151.0,0.00022503,2]
[375205991,1753584667392,-151.0,0.00022503,2]
[375205992,1753584667408,-3801.642,0.00022503,2]
[375205993,1753584667425,-151.0,0.00022503,2]
[375205994,1753584667464,-151.0,0.00022503,2]
[375205995,1753584667479,-151.0,0.00022503,2]
[375205996,1753584667503,-151.0,0.00022503,2]
[375205997,1753584667521,-151.0,0.00022503,2]
[375205998,1753584667545,-151.0,0.00022503,2]
[375205999,1753584667560,-151.0,0.00022503,2]
[375206000,1753584667582,-151.0,0.00022503,2]
[375206001,1753584667606,-151.0,0.00022503,2]
[375206002,1753584667628,-151.0,0.00022503,2]
[375206003,1753584667646,-151.0,0.00022503,2]
[375206004,1753584667664,-151.0,0.00022503,2]
[375206005,1753584667680,-151.0,0.00022503,2]
[375206006,1753584667696,-151.0,0.00022503,7]
[375206007,1753584667710,-190.384102,0.00022503,7]
[375206008,1753584667726,-151.0,0.00022503,7]
[375206009,1753584667739,-3699.02174736,0.00022521,7]
[375206010,1753584667752,-626.0,0.00022536,2]
[375206011,1753584667762,-3942.302754,0.00022558,2]
[375206012,1753584667772,-4088.1679559,0.00022613,2]
[375206013,1753584667783,-3510.91136505,0.00022664,2]
[375206014,1753584667793,-4239.43017027,0.00022668,2]
[375206015,1753584667802,-4396.28908657,0.00022723,2]
[375206016,1753584667811,-151.0,0.00022723,7]
[375206017,1753584667821,-151.0,0.00022723,7]
[375206018,1753584667831,-153.950609,0.00022723,7]
[375206019,1753584667840,-2270.75,0.00022739,2]
[375206020,1753584667850,-460.0,0.00022739,2]
[375206021,1753584667859,-460.0,0.00022739,2]
[375206022,1753584667868,-544.18,0.00022739,2]
[375206023,1753584667878,-1567.62,0.00022739,2]
[375206024,1753584667887,-484.59,0.00022739,2]
[375206025,1753584667897,-460.0,0.00022739,2]
[375206026,1753584667907,-300.59397074,0.00022739,2]
[375206027,1753584667917,-460.0,0.00022739,2]
[375206028,1753584667927,-733.17,0.00022739,2]
[375206029,1753584667938,-769.79,0.00022739,2]
[375206030,1753584667948,-628.61,0.00022739,2]
[375206031,1753584667958,-460.0,0.00022739,2]
[375206032,1753584667968,-460.0,0.00022739,2]
[375206033,1753584667978,-460.0,0.00022739,2]
[375206034,1753584667988,-462.78,0.00022739,2]
[375206035,1753584667999,-460.0,0.00022739,2]
[375206036,1753584668009,-467.68,0.00022739,2]
[375206037,1753584668257,-460.0,0.00022739,2]
[375206038,1753584668276,-460.0,0.00022739,2]
[375206039,1753584668288,-460.0,0.00022739,2]
[375206040,1753584668297,-466.74365477,0.00022739,2]
[375206041,1753584668306,-1855.52,0.00022739,2]
[375206042,1753584668315,-460.0,0.00022739,2]
[375206043,1753584668325,-460.0,0.00022739,2]
[375206044,1753584668334,-882.06,0.00022739,2]
[375206045,1753584668343,-460.0,0.00022739,2]
[375206046,1753584668352,-688.84,0.00022739,2]
[375206047,1753584668362,-460.0,0.00022739,2]
[375206048,1753584668371,-460.0,0.00022739,2]
[375206049,1753584668381,-460.0,0.00022739,2]
[375206050,1753584668392,-4238.22,0.00022739,2]
[375206051,1753584668402,-460.0,0.00022739,2]
[375206052,1753584668411,-2826.79,0.00022739,2]
[375206053,1753584668421,-460.0,0.00022739,2]
[375206054,1753584668430,-1620.32,0.00022739,2]
[375206055,1753584668439,-480.38,0.00022739,2]
[375206056,1753584668449,-2191.67,0.00022739,2]
[375206057,1753584668458,-616.59,0.00022739,2]
[375206058,1753584668467,-533.3,0.00022739,2]
[375206059,1753584668477,-1034.53,0.00022739,2]
[375206060,1753584668486,-460.0,0.00022739,2]
[375206061,1753584668496,-1110.96,0.00022739,2]
[375206062,1753584668505,-460.0,0.00022739,2]
[375206063,1753584668515,-460.0,0.00022739,2]
[375206064,1753584668526,-2727.04,0.00022739,2]
[375206065,1753584668536,-1595.2,0.00022739,2]
[375206066,1753584668546,-565.04,0.00022739,2]
[375206067,1753584668556,-828.54,0.00022739,2]
[375206068,1753584668566,-575.96,0.00022739,2]
[375206069,1753584668578,-460.0,0.00022739,2]
[375206070,1753584668587,-1071.54,0.00022739,2]
[375206071,1753584668597,-1826.21,0.00022739,2]
[375206072,1753584668606,-469.62,0.00022739,2]
[375206073,1753584668616,-460.0,0.00022739,2]
[375206074,1753584668626,-481.95,0.00022739,2]
[375206075,1753584668635,-460.0,0.00022739,2]
[375206076,1753584668646,-2416.16,0.00022739,2]
[375206077,1753584668655,-460.0,0.00022739,2]
[375206078,1753584668665,-708.09,0.00022739,2]
[375206079,1753584668674,-363.13123283,0.00022739,2]
[375206080,1753584668684,-1641.34,0.00022739,2]
[375206081,1753584668694,-877.28,0.00022739,2]
[375206082,1753584668703,-737.71,0.00022739,2]
[375206083,1753584668713,-509.31,0.00022739,2]
[375206084,1753584668722,-463.68,0.00022739,2]
[375206085,1753584668732,-2088.08,0.00022739,2]
[375206086,1753584668742,-460.0,0.00022739,2]
[375206087,1753584668751,-1803.05,0.00022739,2]
[375206088,1753584668761,-811.3,0.00022739,2]
[375206089,1753584668770,-744.6,0.00022739,2]
[375206090,1753584668780,-512.39,0.00022739,2]
[375206091,1753584668790,-504.54311783,0.00022739,2]
[375206092,1753584668804,-299.03954253,0.00022739,2]
[375206093,1753584669073,-0.00921079,0.00018941,2]
[375206094,1753584669085,-185.13455955,0.00018941,2]
[375206095,1753584669096,-460.0,0.00019178,2]
[375206096,1753584669105,-460.0,0.00019178,2]
[375206097,1753584669115,-460.0,0.00019178,2]
[375206098,1753584669125,-328.97501934,0.00019452,2]
[375206099,1753584669361,-460.0,0.00019178,2]
[375206100,1753584669376,-460.0,0.00019178,2]
[375206101,1753584669387,-460.0,0.00019178,2]
[375206102,1753584669397,-131.02498066,0.00019452,2]
[375206103,1753584669408,-460.0,0.00019452,2]
[375206104,1753584669417,-460.0,0.00019452,2]
[375206105,1753584669426,-600.70191841,0.00019452,2]
[375206106,1753584669435,-437.01806089,0.00019452,2]
[375206107,1753584669445,-460.0,0.00019452,2]
[375206108,1753584669455,-185.14377034,0.00019626,2]
[375206109,1753584669465,-460.0,0.00019726,2]
[375206110,1753584669475,-460.0,0.00019726,2]
[375206111,1753584669484,-167.93456456,0.00019726,2]
[375206112,1753584669494,-460.0,0.0002,2]
[375206113,1753584669504,-460.0,0.0002,2]
[375206114,1753584669514,-460.0,0.00020273,2]
[375206115,1753584669523,-460.0,0.00020273,2]
[375206116,1753584669534,-460.0,0.00020273,2]
[375206117,1753584669543,-460.0,0.00020273,2]
[375206118,1753584669553,-460.0,0.00020547,2]
[375206119,1753584669563,-465.89891192,0.00020547,2]
[375206120,1753584669575,-460.0,0.00020547,2]
[375206121,1753584669586,-471.11545319,0.00020547,2]
[375206122,1753584669595,-293.86884939,0.00020722,2]
[375206123,1753584669605,-460.0,0.00020821,2]
[375206124,1753584669615,-460.0,0.00020821,2]
[375206125,1753584669626,-460.0,0.00021095,2]
[375206126,1753584669635,-276.23563013,0.00021095,2]
[375206129,1753584965680,-200.45661333,0.00018077,2]
[375206131,1753585096647,168.77126501,0.00017977,2]
[375206132,1753585103786,215.41042808,0.00017977,2]
[375206133,1753585145446,-10000.0,0.00018031,2]
[375206134,1753585145468,-345.69056167,0.00018077,2]
[375206135,1753585145489,-173.01697404,0.00018506,2]
[375206136,1753585145510,-658.16352054,0.00018548,2]
[375206137,1753585145530,-215.41042808,0.00019078,2]
[375206138,1753585145551,-17892.03774226,0.00019078,2]
[375206139,1753585145572,-337.69,0.00019168,3]
[375206140,1753585145595,-168.84,0.00019168,3]
[375206141,1753585145617,-506.57,0.00019168,3]
[375206142,1753585145637,-500.0,0.00019173,2]
[375206143,1753585145658,-6983.58077341,0.00019177,2]
[375206144,1753585149411,891.03231422,0.0001801,2]
[375206145,1753585203164,200.0,0.00018,2]
[375206147,1753585339633,198.681733,0.00013699,2]
[375206148,1753585635103,-166.0,0.00018077,2]
[375206149,1753585635126,-183.99282975,0.00018603,2]
[375206150,1753585635150,-150.0,0.00018668,2]
[375206151,1753585635170,-168.77126501,0.00018876,2]
[375206152,1753585635192,-535.42193443,0.000189,2]
[375206196,1753585832640,-150.0,0.00018855,2]
[375206198,1753585832651,-119.48799018,0.000189,2]
[375206201,1753585832661,-160.0,0.00018974,2]
[375206204,1753585832670,-300.0,0.00019073,2]
[375206207,1753585832679,-300.0,0.00019073,2]
[375206210,1753585832689,-1200.0,0.00019073,2]
[375206212,1753585832699,-9477.03775658,0.00019074,2]
[375206277,1753585838575,-500.0,0.00019073,2]
[375206278,1753585838586,-500.0,0.00019073,2]
[375206279,1753585838595,-500.0,0.00019073,2]
[375206280,1753585838604,-511.9808262,0.00019073,2]
[375206281,1753585838615,-500.0,0.00019073,2]
[375206282,1753585838626,-500.0,0.00019073,2]
[375206283,1753585838635,-418.09966352,0.00019073,2]
[375206284,1753585838645,-167.51731472,0.00019073,2]
[375206285,1753585838655,-412.18211954,0.00019073,2]
[375206286,1753585838665,-162.33924149,0.00019073,2]
[375206287,1753585838675,-500.0,0.00019073,2]
[375206288,1753585838686,-500.0,0.00019073,2]
[375206289,1753585838695,-513.26880031,0.00019073,2]
[375206290,1753585838706,-33539.38147001,0.00019074,2]
[375206291,1753585838715,-161.23763115,0.00019078,2]
[375206292,1753585838724,-168.84,0.00019168,3]
[375206293,1753585838734,-506.54,0.00019168,3]
[375206294,1753585838744,-500.0,0.00019173,2]
[375206295,1753585838753,-500.0,0.00019173,2]
[375206296,1753585838762,-354.73656689,0.00019177,2]
[375206297,1753585838772,-500.0,0.00019177,2]
[375206298,1753585838781,-500.0,0.00019177,2]
[375206299,1753585838790,-500.0,0.00019177,2]
[375206300,1753585838800,-500.0,0.00019177,2]
[375206301,1753585838809,-500.0,0.00019177,2]
[375206302,1753585838819,-506.06000559,0.00019177,2]
[375206303,1753585838827,-460.0,0.00019178,2]
[375206304,1753585838837,-460.0,0.00019178,2]
[375206305,1753585838847,-460.0,0.00019178,2]
[375206306,1753585838856,-460.0,0.00019178,2]
[375206307,1753585838866,-462.37080429,0.00019178,2]
[375206308,1753585838878,-460.0,0.00019178,2]
[375206309,1753585838891,-460.0,0.00019178,2]
[375206310,1753585838901,-523.60763141,0.00019178,2]
[375206311,1753585838911,-461.50938384,0.00019178,2]
[375206312,1753585838920,-460.0,0.00019178,2]
[375206313,1753585838931,-245.30844522,0.00019178,2]
[375206314,1753585838941,-460.0,0.00019178,2]
[375206315,1753585838950,-460.0,0.00019178,2]
[375206316,1753585838965,-460.0,0.00019178,2]
[375206317,1753585838975,-340.57515416,0.00019178,2]
[375206318,1753585838985,-460.0,0.00019178,2]
[375206319,1753585838995,-460.0,0.00019178,2]
[375206320,1753585839006,-460.0,0.00019178,2]
[375206321,1753585839016,-1000.0,0.00019178,2]
[375206322,1753585839027,-460.0,0.00019178,2]
[375206323,1753585839037,-379.88597697,0.00019178,2]
[375206324,1753585839047,-462.83327977,0.00019178,2]
[375206325,1753585839058,-460.0,0.00019178,2]
[375206326,1753585839068,-460.0,0.00019178,2]
[375206327,1753585839079,-460.0,0.00019178,2]
[375206328,1753585839088,-320.07941069,0.00019178,2]
[375206329,1753585839228,-460.0,0.00019178,2]
[375206330,1753585839238,-462.77815846,0.00019178,2]
[375206331,1753585839247,-460.0,0.00019178,2]
[375206332,1753585839256,-460.0,0.00019178,2]
[375206333,1753585839266,-460.0,0.00019178,2]
[375206334,1753585839276,-460.0,0.00019178,2]
[375206335,1753585839285,-460.0,0.00019178,2]
[375206336,1753585839297,-460.0,0.00019178,2]
[375206337,1753585839308,-460.0,0.00019178,2]
[375206338,1753585839317,-461.39108024,0.00019178,2]
[375206339,1753585839327,-460.0,0.00019178,2]
[375206340,1753585839337,-460.0,0.00019178,2]
[375206341,1753585839348,-462.0203705,0.00019178,2]
[375206342,1753585839358,-461.33768676,0.00019178,2]
[375206343,1753585839369,-460.0,0.00019178,2]
[375206344,1753585839379,-460.0,0.00019178,2]
[375206345,1753585839390,-461.45066792,0.00019178,2]
[375206346,1753585839401,-460.0,0.00019178,2]
[375206347,1753585839412,-460.0,0.00019178,2]
[375206348,1753585839423,-460.0,0.00019178,2]
[375206349,1753585839434,-460.0,0.00019178,2]
[375206350,1753585839445,-462.69056021,0.00019178,2]
[375206351,1753585839456,-460.0,0.00019178,2]
[375206352,1753585839465,-460.0,0.00019178,2]
[375206353,1753585839476,-460.0,0.00019178,2]
[375206354,1753585839487,-502.03726905,0.00019178,2]
[375206355,1753585839497,-1261.95,0.00019178,2]
[375206356,1753585839507,-460.0,0.00019178,2]
[375206357,1753585839518,-429.51103358,0.00019178,2]
[375206358,1753585839529,-460.0,0.00019178,2]